bitfinex-derivatives/quotes_BNBF0:USTF0_20250220
["timestamp","ask_amount","ask_price","bid_price","bid_amount"]
[1740020510037,0.30583845,653.94,652.38,0.30656979]
[1740020510438,0.28123341,653.93,652.38,0.30656979]
[1740020512138,0.30584781,653.92,652.38,0.30656979]
[1740020512342,0.28123341,653.91,652.38,0.30656979]
[1740020513544,0.30585716,653.9,652.38,0.30656979]
[1740020513738,0.28123341,653.89,652.38,0.30656979]
[1740020514443,0.30586651,653.88,652.38,0.30656979]
[1740020526557,0.28125054,653.87,652.38,0.30656979]
[1740020527357,0.30586651,653.88,652.38,0.30656979]
[1740020527659,0.28132075,653.87,652.38,0.30656979]
[1740020528253,0.30587587,653.86,652.38,0.30656979]
[1740020528557,0.28132075,653.85,652.38,0.30656979]
[1740020529353,0.30588523,653.84,652.38,0.30656979]
[1740020529558,0.28132075,653.83,652.38,0.30656979]
[1740020529860,0.30589458,653.82,652.38,0.30656979]
[1740020530053,0.28132075,653.81,652.38,0.30656979]
[1740020530959,0.28132605,653.8,652.38,0.30656979]
[1740020531160,0.28132605,653.81,652.38,0.30656979]
[1740020531354,0.58722999,653.8,652.38,0.30656979]
[1740020531660,0.58723467,653.79,652.38,0.30656979]
[1740020531958,0.58723935,653.78,652.38,0.30656979]
[1740020532158,0.58724403,653.77,652.38,0.30656979]
[1740020532458,0.58724871,653.76,652.38,0.30656979]
[1740020532659,0.58725339,653.75,652.38,0.30656979]
[1740020532854,0.58725807,653.74,652.38,0.30656979]
[1740020533056,0.28132605,653.73,652.38,0.30656979]
[1740020533759,0.30593202,653.74,652.38,0.30656979]
[1740020535957,0.28129234,653.73,652.38,0.30656979]
[1740020536157,0.30593202,653.74,652.38,0.30656979]
[1740020536663,0.28129502,653.73,652.38,0.30656979]
[1740020536865,0.30593202,653.74,652.38,0.30656979]
[1740020545969,0.28127719,653.73,652.38,0.30656979]
[1740020546269,0.30593202,653.74,652.38,0.30656979]
[1740020568381,0.28132856,653.73,652.38,0.30656979]
[1740020568580,0.30594138,653.72,652.38,0.30656979]
[1740020600811,1.14181596,654.44,652.38,0.30656979]
[1740020601011,0.30561413,654.42,652.38,0.30656979]
[1740020601214,0.28113282,654.41,652.38,0.30656979]
[1740020601419,0.30562814,654.39,652.38,0.30656979]
[1740020601620,0.28113282,654.38,652.38,0.30656979]
[1740020602018,0.30564215,654.36,652.38,0.30656979]
[1740020602214,0.28113282,654.35,652.38,0.30656979]
[1740020602414,0.30565616,654.33,652.38,0.30656979]
[1740020602614,0.28113282,654.32,652.38,0.30656979]
[1740020603014,0.30567018,654.3,652.38,0.30656979]
[1740020603214,0.28113282,654.29,652.38,0.30656979]
[1740020603415,0.30568419,654.27,652.38,0.30656979]
[1740020603715,0.28113282,654.26,652.38,0.30656979]
[1740020603917,0.30569821,654.24,652.38,0.30656979]
[1740020604119,0.28113282,654.23,652.38,0.30656979]
[1740020605022,0.30571223,654.21,652.38,0.30656979]
[1740020605226,0.28113282,654.2,652.38,0.30656979]
[1740020605528,0.30572625,654.18,652.38,0.30656979]
[1740020605727,0.28113282,654.17,652.38,0.30656979]
[1740020606129,0.30574027,654.15,652.38,0.30656979]
[1740020606329,0.28122689,654.14,652.38,0.30656979]
[1740020606630,0.30575429,654.12,652.38,0.30656979]
[1740020606830,0.28122689,654.11,652.38,0.30656979]
[1740020607023,0.30576831,654.09,652.38,0.30656979]
[1740020607325,0.28122689,654.08,652.38,0.30656979]
[1740020607830,0.2812241,654.07,652.38,0.30656979]
[1740020608033,0.2812241,654.08,652.38,0.30656979]
[1740020608230,0.30578234,654.06,652.38,0.30656979]
[1740020608431,0.2812241,654.05,652.38,0.30656979]
[1740020608631,0.30579169,654.04,652.38,0.30656979]
[1740020608933,0.2812241,654.03,652.38,0.30656979]
[1740020609135,0.30580104,654.02,652.38,0.30656979]
[1740020609436,0.2812241,654.01,652.38,0.30656979]
[1740020610629,0.30581039,654.0,652.38,0.30656979]
[1740020610831,0.2812241,653.99,652.38,0.30656979]
[1740020611029,0.30581974,653.98,652.38,0.30656979]
[1740020611335,0.2812241,653.97,652.38,0.30656979]
[1740020611534,0.3058291,653.96,652.38,0.30656979]
[1740020615132,0.2812432,653.95,652.38,0.30656979]
[1740020615334,0.30583845,653.94,652.38,0.30656979]
[1740020625539,0.2811577,653.93,652.38,0.30656979]
[1740020625936,0.30583845,653.94,652.38,0.30656979]
[1740020639961,1.14181596,654.57,652.38,0.30656979]
[1740020640159,0.30555343,654.55,652.38,0.30656979]
[1740020640360,0.28109057,654.54,652.38,0.30656979]
[1740020640656,0.30556743,654.52,652.38,0.30656979]
[1740020641162,0.28107479,654.51,652.38,0.30656979]
[1740020641559,0.30558144,654.49,652.38,0.30656979]
[1740020643563,0.28108952,654.48,652.38,0.30656979]
[1740020644267,0.30559545,654.46,652.38,0.30656979]
[1740020644461,0.28108952,654.45,652.38,0.30656979]
[1740020644860,0.30560946,654.43,652.38,0.30656979]
[1740020645063,0.28108952,654.42,652.38,0.30656979]
[1740020645264,0.30562347,654.4,652.38,0.30656979]
[1740020645464,0.28108952,654.39,652.38,0.30656979]
[1740020645665,0.30563281,654.38,652.38,0.30656979]
[1740020645861,0.28108952,654.37,652.38,0.30656979]
[1740020646562,0.30564215,654.36,652.38,0.30656979]
[1740020646765,0.28108952,654.35,652.38,0.30656979]
[1740020646969,0.30565149,654.34,652.38,0.30656979]
[1740020647167,0.28108952,654.33,652.38,0.30656979]
[1740020647368,0.30566083,654.32,652.38,0.30656979]
[1740020647667,0.28108952,654.31,652.38,0.30656979]
[1740020647863,0.30567018,654.3,652.38,0.30656979]
[1740020648068,0.28108952,654.29,652.38,0.30656979]
[1740020648271,0.30567952,654.28,652.38,0.30656979]
[1740020648471,0.28108952,654.27,652.38,0.30656979]
[1740020648869,0.30568886,654.26,652.38,0.30656979]
[1740020649065,0.28108952,654.25,652.38,0.30656979]
[1740020649271,0.30569821,654.24,652.38,0.30656979]
[1740020649466,0.28108952,654.23,652.38,0.30656979]
[1740020649868,0.30570756,654.22,652.38,0.30656979]
[1740020650071,0.28108952,654.21,652.38,0.30656979]
[1740020650769,0.30570756,654.22,652.38,0.30656979]
[1740020657777,0.28108143,654.21,652.38,0.30656979]
[1740020658172,0.3057169,654.2,652.38,0.30656979]
[1740020674381,0.3057169,654.2,652.4,1.35360839]
[1740020675382,0.3057169,654.2,652.42,0.30655099]
[1740020687595,0.3057169,654.2,652.54,1.35360839]
[1740020689094,0.3057169,654.2,652.56,0.30648522]
[1740020689891,0.3057169,654.2,652.56,1.66009361]
[1740020692092,0.3057169,654.2,652.56,0.30648522]
[1740020707000,0.28109464,654.19,652.56,0.30648522]
[1740020708802,0.30573092,654.17,652.56,0.30648522]
[1740020709004,0.28109464,654.16,652.56,0.30648522]
[1740020709803,0.30574494,654.14,652.56,0.30648522]
[1740020710003,0.28109464,654.13,652.56,0.30648522]
[1740020710205,0.30575429,654.12,652.56,0.30648522]
[1740020710404,0.28109464,654.11,652.56,0.30648522]
[1740020710605,0.30576364,654.1,652.56,0.30648522]
[1740020710806,0.28109464,654.09,652.56,0.30648522]
[1740020711006,0.74892782,654.66,652.56,0.30648522]
[1740020711007,0.30577299,654.08,652.56,0.30648522]
[1740020711801,0.2811111,654.07,652.56,0.30648522]
[1740020712802,0.30577299,654.08,652.56,0.30648522]
[1740020713206,0.2811095,654.07,652.56,0.30648522]
[1740020713803,0.30577299,654.08,652.56,0.30648522]
[1740020760445,1.14078002,654.57,652.56,0.30648522]
[1740020760644,0.30554876,654.56,652.56,0.30648522]
[1740020760849,0.28101471,654.55,652.56,0.30648522]
[1740020761049,0.3055581,654.54,652.56,0.30648522]
[1740020761246,0.28101471,654.53,652.56,0.30648522]
[1740020761451,0.30556743,654.52,652.56,0.30648522]
[1740020761646,0.28101471,654.51,652.56,0.30648522]
[1740020763251,0.30556743,654.52,652.56,0.30648522]
[1740020773263,0.28109565,654.51,652.56,0.30648522]
[1740020773461,0.30556743,654.52,652.22,1.35360839]
[1740020773462,0.28109565,654.5,652.54,1.59732555]
[1740020773658,0.28109565,654.49,652.54,1.59732555]
[1740020773855,0.28109565,654.48,652.54,1.59732555]
[1740020774260,0.28109565,654.47,652.54,1.59732555]
[1740020774557,0.28109565,654.46,652.54,1.59732555]
[1740020774755,0.28109565,654.45,652.55,0.30648992]
[1740020774955,0.28109565,654.44,652.55,0.30648992]
[1740020775156,0.28109565,654.51,652.55,0.30648992]
[1740020775461,0.28109565,654.5,652.55,0.30648992]
[1740020775864,0.30558611,654.48,652.55,0.30648992]
[1740020776062,0.28109565,654.47,652.55,0.30648992]
[1740020776359,0.30560012,654.45,652.55,0.30648992]
[1740020776559,0.28109565,654.44,652.55,0.30648992]
[1740020776756,0.30561413,654.42,652.55,0.30648992]
[1740020776961,0.28109565,654.41,652.55,0.30648992]
[1740020777464,0.30562814,654.39,652.55,0.30648992]
[1740020777668,0.28109565,654.38,652.55,0.30648992]
[1740020777965,0.30564215,654.36,652.55,0.30648992]
[1740020778163,0.2811752,654.35,652.55,0.30648992]
[1740020778362,0.30565616,654.33,652.55,0.30648992]
[1740020778561,0.2811752,654.32,652.55,0.30648992]
[1740020778762,0.30567018,654.3,652.55,0.30648992]
[1740020778958,0.2811752,654.29,652.55,0.30648992]
[1740020779159,0.30568419,654.27,652.55,0.30648992]
[1740020779362,0.2811752,654.26,652.55,0.30648992]
[1740020779565,0.30569821,654.24,652.55,0.30648992]
[1740020779759,0.2811752,654.23,652.55,0.30648992]
[1740020779956,0.30571223,654.21,652.55,0.30648992]
[1740020780158,0.2811752,654.2,652.55,0.30648992]
[1740020780667,0.30572157,654.19,652.55,0.30648992]
[1740020781564,0.28116335,654.18,652.55,0.30648992]
[1740020781863,0.30573092,654.17,652.55,0.30648992]
[1740020782267,0.28116043,654.16,652.55,0.30648992]
[1740020782469,0.30574027,654.15,652.55,0.30648992]
[1740020782667,0.28116043,654.14,652.55,0.30648992]
[1740020782863,0.30574962,654.13,652.55,0.30648992]
[1740020783060,0.28116043,654.12,652.55,0.30648992]
[1740020783262,0.30575897,654.11,652.55,0.30648992]
[1740020783467,0.28116043,654.1,652.55,0.30648992]
[1740020783663,0.30576831,654.09,652.55,0.30648992]
[1740020783863,0.28116043,654.08,652.55,0.30648992]
[1740020784063,0.30577766,654.07,652.55,0.30648992]
[1740020784263,0.28119939,654.06,652.55,0.30648992]
[1740020784468,0.30578701,654.05,652.55,0.30648992]
[1740020784764,0.28119939,654.04,652.55,0.30648992]
[1740020785068,0.30579637,654.03,652.55,0.30648992]
[1740020785270,0.28119939,654.02,652.55,0.30648992]
[1740020786169,0.30580572,654.01,652.55,0.30648992]
[1740020786367,0.28119939,654.0,652.55,0.30648992]
[1740020786567,0.30581507,653.99,652.55,0.30648992]
[1740020786768,0.28119939,653.98,652.55,0.30648992]
[1740020786970,0.30582442,653.97,652.55,0.30648992]
[1740020787169,0.28119939,653.96,652.55,0.30648992]
[1740020788170,0.30583377,653.95,652.55,0.30648992]
[1740020788363,0.28121745,653.94,652.55,0.30648992]
[1740020788568,0.30584313,653.93,652.55,0.30648992]
[1740020788766,0.28121745,653.92,652.55,0.30648992]
[1740020788966,0.30585248,653.91,652.55,0.30648992]
[1740020789166,0.28121745,653.9,652.55,0.30648992]
[1740020789365,0.30586184,653.89,652.55,0.30648992]
[1740020789564,0.28121745,653.88,652.55,0.30648992]
[1740020789766,0.58708396,653.88,652.55,0.30648992]
[1740020789965,0.28121217,653.87,652.55,0.30648992]
[1740020790165,0.30586651,653.88,652.55,0.30648992]
[1740020799677,0.28131972,653.87,652.55,0.30648992]
[1740020799885,0.30588055,653.85,652.55,0.30648992]
[1740020800079,0.28131972,653.84,652.55,0.30648992]
[1740020800278,0.30588991,653.83,652.55,0.30648992]
[1740020800478,0.28131972,653.82,652.55,0.30648992]
[1740020800681,0.30589926,653.81,652.55,0.30648992]
[1740020800883,0.28131972,653.8,652.55,0.30648992]
[1740020801078,0.30590862,653.79,652.55,0.30648992]
[1740020801277,0.28131972,653.78,652.55,0.30648992]
[1740020801483,0.30591798,653.77,652.55,0.30648992]
[1740020801683,0.28131972,653.76,652.55,0.30648992]
[1740020801880,0.30592734,653.75,652.55,0.30648992]
[1740020802184,0.28130847,653.74,652.55,0.30648992]
[1740020802387,0.3059367,653.73,651.17,1.35360839]
[1740020802578,0.28130847,653.72,652.45,1.59876264]
[1740020802778,0.30594606,653.71,651.29,0.30708286]
[1740020802981,0.28130847,653.7,652.45,1.59882997]
[1740020803189,0.30595542,653.69,652.45,1.59882997]
[1740020803391,0.28130847,653.68,651.29,0.30708286]
[1740020803591,0.30596478,653.67,651.29,0.30708286]
[1740020803784,0.28130847,653.66,651.29,0.30708286]
[1740020803985,0.30597414,653.65,651.29,0.30708286]
[1740020804189,0.28130847,653.64,651.29,0.30708286]
[1740020804386,0.3059835,653.63,651.29,0.30708286]
[1740020804590,0.28130847,653.62,651.3,1.59971806]
[1740020804790,0.30599287,653.61,651.41,0.30702629]
[1740020804992,0.28130847,653.6,651.41,0.30702629]
[1740020805287,0.30600223,653.59,651.41,0.30702629]
[1740020805492,0.28135763,653.58,651.41,0.30702629]
[1740020805697,0.30601159,653.57,651.41,0.30702629]
[1740020805898,0.28135763,653.56,651.41,0.30702629]
[1740020806498,0.30601159,653.57,651.41,0.30702629]
[1740020809200,0.28133392,653.56,651.41,0.30702629]
[1740020812905,0.30602096,653.55,651.41,0.30702629]
[1740020813098,0.28133392,653.54,651.41,0.30702629]
[1740020813403,0.30603032,653.53,651.41,0.30702629]
[1740020813603,0.28133392,653.52,651.41,0.30702629]
[1740020815603,0.30603032,653.53,651.41,0.30702629]
[1740020815803,0.28131969,653.52,651.41,0.30702629]
[1740020817205,0.30603032,653.53,651.41,0.30702629]
[1740020817401,0.28132718,653.52,651.41,0.30702629]
[1740020819405,0.30603032,653.53,651.41,0.30702629]
[1740020826512,0.30603032,653.53,651.52,1.35360839]
[1740020826918,0.30603032,653.53,651.62,0.30692735]
[1740020830621,0.28134105,653.52,651.62,0.30692735]
[1740020830821,0.30603969,653.51,651.62,0.30692735]
[1740020837121,0.30603969,653.51,651.62,1.66053574]
[1740020839330,0.30603969,653.51,651.62,0.30692735]
[1740020842128,0.28140232,653.5,651.62,0.30692735]
[1740020842431,0.30604905,653.49,651.62,0.30692735]
[1740020848740,0.30604905,653.49,651.67,1.35360839]
[1740020848935,0.30604905,653.49,651.69,0.30689438]
[1740020865648,0.30604905,653.49,651.69,2.52791222]
[1740020865850,0.30604905,653.49,651.7,2.22101784]
[1740020866051,0.30604905,653.49,651.72,0.30688025]
[1740020866452,0.30604905,653.49,651.89,1.35360839]
[1740020866649,0.30604905,653.49,651.91,0.30679081]
[1740020868658,0.30604905,653.49,651.96,1.35360839]
[1740020869054,0.30604905,653.49,651.98,0.30675787]
[1740020891574,0.30604905,653.49,651.98,0.30675787]
[1740020915696,0.28134412,653.48,651.98,0.30675787]
[1740020917496,0.30604905,653.49,651.98,0.30675787]
[1740020936213,0.28140962,653.48,651.98,0.30675787]
[1740020937316,0.30605842,653.47,651.98,0.30675787]
[1740020937616,0.28140962,653.46,651.98,0.30675787]
[1740020937817,0.30606779,653.45,651.98,0.30675787]
[1740020938017,0.28140962,653.44,651.98,0.30675787]
[1740020938217,0.30607716,653.43,651.98,0.30675787]
[1740020938417,0.28140962,653.42,651.98,0.30675787]
[1740020938611,0.30608653,653.41,651.98,0.30675787]
[1740020938815,0.28140962,653.4,651.98,0.30675787]
[1740020939011,0.30609589,653.39,651.98,0.30675787]
[1740020939210,0.28140962,653.38,651.98,0.30675787]
[1740020939412,0.30610526,653.37,651.98,0.30675787]
[1740020940820,0.28140347,653.36,651.98,0.30675787]
[1740020941524,0.30611463,653.35,651.98,0.30675787]
[1740020942020,0.28152031,653.34,651.98,0.30675787]
[1740020942320,0.30612869,653.32,651.98,0.30675787]
[1740020942619,0.28152031,653.31,651.98,0.30675787]
[1740020942821,0.30613806,653.3,651.98,0.30675787]
[1740020943217,0.28152481,653.29,651.98,0.30675787]
[1740020943411,0.30614744,653.28,651.98,0.30675787]
[1740020943619,0.28152481,653.27,651.98,0.30675787]
[1740020943817,0.3061615,653.25,651.98,0.30675787]
[1740020944014,0.28152481,653.24,651.98,0.30675787]
[1740020944215,0.30617087,653.23,651.98,0.30675787]
[1740020944520,0.28152481,653.22,651.98,0.30675787]
[1740020944720,0.30618024,653.21,651.98,0.30675787]
[1740020947122,0.28154085,653.2,651.98,0.30675787]
[1740020947323,0.30618962,653.19,651.98,0.30675787]
[1740020952124,0.28157052,653.18,651.98,0.30675787]
[1740020952321,0.30619899,653.17,651.98,0.30675787]
[1740020952522,0.28157052,653.16,651.98,0.30675787]
[1740020952724,0.30620837,653.15,651.98,0.30675787]
[1740020953225,0.2815673,653.14,651.98,0.30675787]
[1740020953423,0.2815673,653.14,651.82,1.59995096]
[1740020955022,0.30622243,653.12,651.82,1.59995096]
[1740020955530,0.28161804,653.11,651.82,1.59995096]
[1740020955828,0.3062365,653.09,651.82,1.59995096]
[1740020956029,0.28161804,653.08,651.82,1.59995096]
[1740020956928,0.30625057,653.06,651.82,1.59995096]
[1740020957121,0.28161804,653.05,651.82,1.59995096]
[1740020957325,0.30625995,653.04,651.82,1.59995096]
[1740020957522,0.28161804,653.03,651.82,1.59995096]
[1740020957725,0.30626933,653.02,651.82,1.59995096]
[1740020958026,0.28161804,653.01,651.82,1.59995096]
[1740020958223,0.30627871,653.0,651.82,1.59995096]
[1740020961231,0.28163279,652.99,651.82,1.59995096]
[1740020961426,0.30629278,652.97,650.43,1.35360839]
[1740020961624,0.28163279,652.96,651.73,1.60016553]
[1740020961925,0.30630216,652.95,650.55,0.30743217]
[1740020962230,0.30630216,652.95,651.73,1.60055805]
[1740020962430,0.30630216,652.95,650.55,0.30743217]
[1740020962729,0.30630216,652.95,650.56,1.60093234]
[1740020962931,0.30630216,652.95,650.67,0.30737547]
[1740020963335,0.28163546,652.94,650.67,0.30737547]
[1740020963535,0.30631154,652.93,650.67,0.30737547]
[1740020964030,0.28164366,652.92,650.67,0.30737547]
[1740020964832,0.30632093,652.91,650.67,0.30737547]
[1740020965032,0.28164366,652.9,650.67,0.30737547]
[1740020965432,0.30633031,652.89,650.67,0.30737547]
[1740020965632,0.28164366,652.88,650.67,0.30737547]
[1740020965834,0.3063397,652.87,650.67,0.30737547]
[1740020966136,0.28164366,652.86,650.67,0.30737547]
[1740020966332,0.30634908,652.85,650.67,0.30737547]
[1740020966836,0.28165403,652.84,650.67,0.30737547]
[1740020967133,0.30635847,652.83,650.67,0.30737547]
[1740020967337,0.28165403,652.82,650.67,0.30737547]
[1740020967531,0.30636785,652.81,650.67,0.30737547]
[1740020977242,0.30636785,652.81,650.77,1.35360839]
[1740020977439,0.30636785,652.81,650.87,0.30728102]
[1740020979346,0.30636785,652.81,650.96,1.35360839]
[1740020979543,0.30636785,652.81,650.98,0.3072291]
[1740020981346,0.28164974,652.8,650.98,0.3072291]
[1740020981547,0.30637724,652.79,650.98,0.3072291]
[1740020983043,0.30637724,652.79,650.98,1.66083749]
[1740020985243,0.30637724,652.79,650.98,0.3072291]
[1740020997155,0.30637724,652.79,651.07,1.35360839]
[1740020997355,0.30637724,652.79,651.09,0.30717719]
[1740020999753,0.30637724,652.79,651.13,1.35360839]
[1740021000055,0.30637724,652.79,651.15,0.30714889]
[1740021019275,1.14078002,653.32,651.04,1.60095689]
[1740021019478,0.28164987,653.31,651.04,1.60095689]
[1740021020480,0.28164987,653.3,651.04,1.60095689]
[1740021020680,0.28164987,653.29,651.04,1.60095689]
[1740021020982,0.28164987,653.33,651.04,1.60095689]
[1740021021681,0.28164987,653.32,651.04,1.60095689]
[1740021021881,0.28164987,653.33,651.04,1.60095689]
[1740021022183,1.42242989,653.32,651.04,1.60095689]
[1740021022381,0.28164987,653.31,651.04,1.60095689]
[1740021025382,1.14078002,653.32,651.04,1.60095689]
[1740021025583,0.28162511,653.31,651.04,1.60095689]
[1740021027885,0.28162511,653.3,651.04,1.60095689]
[1740021028084,0.28162511,653.37,651.04,1.60095689]
[1740021028285,0.28162511,653.36,651.04,1.60095689]
[1740021028485,0.28162511,653.37,651.04,1.60095689]
[1740021028784,0.28162511,653.36,651.04,1.60095689]
[1740021028986,0.28162511,653.37,651.04,1.60095689]
[1740021029180,0.28162511,653.36,651.04,1.60095689]
[1740021029383,0.28162511,653.37,651.04,1.60095689]
[1740021029988,1.14078002,653.31,651.04,1.60095689]
[1740021030187,0.28162511,653.3,651.04,1.60095689]
[1740021031687,1.14078002,653.29,651.04,1.60095689]
[1740021031884,0.28162511,653.28,651.04,1.60095689]
[1740021032284,1.14078002,653.29,651.04,1.60095689]
[1740021032487,0.28162602,653.28,651.04,1.60095689]
[1740021033388,1.14078002,653.23,651.04,1.60095689]
[1740021033683,0.28162602,653.22,651.04,1.60095689]
[1740021034190,0.28162241,653.21,651.04,1.60095689]
[1740021034388,0.28162241,653.22,651.04,1.60095689]
[1740021034689,0.28162241,653.21,651.04,1.60095689]
[1740021034888,0.28162241,653.22,651.04,1.60095689]
[1740021035081,0.28162241,653.21,651.04,1.60095689]
[1740021035286,0.28162241,653.22,651.04,1.60095689]
[1740021035487,0.28162241,653.21,651.04,1.60095689]
[1740021035687,0.28162241,653.22,651.04,1.60095689]
[1740021035988,1.14078002,653.19,651.05,1.35360839]
[1740021036189,0.28162241,653.18,651.05,1.35360839]
[1740021037587,0.28162241,653.18,651.04,1.60095689]
[1740021037793,0.28162241,653.17,651.04,1.60095689]
[1740021038092,0.28162241,653.23,651.04,1.60095689]
[1740021038293,0.28162241,653.22,651.04,1.60095689]
[1740021038593,0.28162241,653.21,651.04,1.60095689]
[1740021038788,0.28162241,653.23,651.04,1.60095689]
[1740021038991,0.28162241,653.22,651.04,1.60095689]
[1740021039189,0.2816293,653.21,651.04,1.60095689]
[1740021039392,0.2816293,653.25,651.04,1.60095689]
[1740021039596,0.2816293,653.24,651.04,1.60095689]
[1740021039894,0.2816293,653.23,651.04,1.60095689]
[1740021040094,0.2816293,653.22,651.04,1.60095689]
[1740021040293,0.2816293,653.25,651.04,1.60095689]
[1740021040890,0.28166697,653.24,651.04,1.60095689]
[1740021041092,0.28166697,653.23,651.04,1.60095689]
[1740021041289,0.28166697,653.22,651.04,1.60095689]
[1740021041493,0.28166697,653.21,651.04,1.60095689]
[1740021041696,0.28166697,653.2,651.04,1.60095689]
[1740021041894,0.28166697,653.19,651.04,1.60095689]
[1740021042096,0.28166697,653.18,651.04,1.60095689]
[1740021042290,0.28166697,653.17,651.04,1.60095689]
[1740021042494,0.28166697,653.16,651.04,1.60095689]
[1740021042694,0.28166697,653.15,651.04,1.60095689]
[1740021042897,0.28166697,653.14,651.04,1.60095689]
[1740021043093,0.28166697,653.13,651.04,1.60095689]
[1740021043489,0.28166697,653.12,651.04,1.60095689]
[1740021043695,1.14078002,652.94,651.04,1.60095689]
[1740021043993,0.28166697,652.93,651.04,1.60095689]
[1740021044195,1.14078002,652.94,651.04,1.60095689]
[1740021044397,0.28183973,652.93,651.04,1.60095689]
[1740021044597,0.28183973,652.92,651.04,1.60095689]
[1740021044897,0.28183973,652.91,651.04,1.60095689]
[1740021045099,0.28183973,652.9,651.04,1.60095689]
[1740021045294,0.28183973,652.89,651.04,1.60095689]
[1740021045501,1.14078002,652.9,651.04,1.60095689]
[1740021045693,0.28183973,652.89,651.04,1.60095689]
[1740021045897,1.14078002,652.9,651.04,1.60095689]
[1740021046201,0.28183728,652.89,651.04,1.60095689]
[1740021046500,0.28183728,652.88,651.04,1.60095689]
[1740021046799,0.28183728,652.87,651.04,1.60095689]
[1740021046999,0.28183728,652.86,651.04,1.60095689]
[1740021047200,0.28183728,652.85,651.04,1.60095689]
[1740021047399,0.28183728,652.89,651.04,1.60095689]
[1740021047599,1.14078002,653.02,651.04,1.60095689]
[1740021047899,0.2818303,653.01,651.04,1.60095689]
[1740021048095,0.2818303,653.0,651.04,1.60095689]
[1740021048295,0.2818303,652.99,651.04,1.60095689]
[1740021048497,0.2818303,652.98,651.04,1.60095689]
[1740021048696,0.2818303,652.97,651.04,1.60095689]
[1740021048898,0.2818303,652.96,651.04,1.60095689]
[1740021049195,0.2818303,652.95,651.04,1.60095689]
[1740021049399,0.2818303,653.01,651.04,1.60095689]
[1740021049599,0.2818303,653.0,651.04,1.60095689]
[1740021049795,0.2818303,653.01,651.04,1.60095689]
[1740021049993,0.2818303,653.0,651.04,1.60095689]
[1740021050195,0.2818303,652.99,651.04,1.60095689]
[1740021050395,0.2818303,653.1,651.04,1.60095689]
[1740021050594,0.2818303,653.09,651.04,1.60095689]
[1740021050799,0.2818303,653.08,651.04,1.60095689]
[1740021050997,0.2818303,653.07,651.04,1.60095689]
[1740021051295,0.2818303,653.06,651.04,1.60095689]
[1740021051499,0.2818303,653.05,651.04,1.60095689]
[1740021051701,0.2818303,653.04,651.04,1.60095689]
[1740021051894,0.2818303,653.03,651.04,1.60095689]
[1740021052095,0.2818303,653.02,651.04,1.60095689]
[1740021052295,0.2818303,653.01,651.04,1.60095689]
[1740021052501,0.2818303,653.0,651.04,1.60095689]
[1740021052702,1.14078002,653.2,651.04,1.60095689]
[1740021052904,0.28184313,653.19,651.04,1.60095689]
[1740021053102,0.28184313,653.18,651.04,1.60095689]
[1740021053303,0.28184313,653.17,651.04,1.60095689]
[1740021053502,0.28184313,653.16,651.04,1.60095689]
[1740021053698,0.28184313,653.15,651.04,1.60095689]
[1740021053897,0.28184313,653.14,651.04,1.60095689]
[1740021054095,0.28184313,653.13,651.04,1.60095689]
[1740021054297,0.28184313,653.12,651.04,1.60095689]
[1740021054498,0.28184313,653.11,651.04,1.60095689]
[1740021054698,0.28184313,653.1,651.04,1.60095689]
[1740021054899,0.28184313,653.09,651.04,1.60095689]
[1740021055202,0.28184313,653.08,651.04,1.60095689]
[1740021055403,0.30628809,652.98,651.04,1.90815767]
[1740021055602,0.28184313,652.97,651.04,1.90815767]
[1740021055803,0.30630216,652.95,651.04,1.90815767]
[1740021056003,0.28184313,652.94,651.05,0.30719606]
[1740021056205,0.30631624,652.92,651.05,0.30719606]
[1740021056398,0.28184313,652.91,651.05,0.30719606]
[1740021057304,0.30633031,652.89,651.05,0.30719606]
[1740021057500,0.28184313,652.88,651.05,0.30719606]
[1740021057704,0.30634439,652.86,651.05,0.30719606]
[1740021057904,0.28184313,652.85,651.05,0.30719606]
[1740021058105,0.30635847,652.83,651.05,0.30719606]
[1740021058307,0.28184313,652.82,651.05,0.30719606]
[1740021058506,0.30637254,652.8,651.05,0.30719606]
[1740021058707,0.28184313,652.79,651.05,0.30719606]
[1740021059300,0.30638662,652.77,651.05,0.30719606]
[1740021059505,0.28184313,652.76,651.05,0.30719606]
[1740021060605,0.30640071,652.74,651.05,0.30719606]
[1740021060811,0.28184313,652.73,651.05,0.30719606]
[1740021061203,0.30641479,652.71,651.05,0.30719606]
[1740021061406,0.28184313,652.7,651.05,0.30719606]
[1740021063811,0.30642887,652.68,651.05,0.30719606]
[1740021064112,0.28184313,652.67,651.05,0.30719606]
[1740021064505,0.30644296,652.65,651.05,0.30719606]
[1740021064705,0.28184313,652.64,651.05,0.30719606]
[1740021064910,0.30645235,652.63,651.05,0.30719606]
[1740021065113,0.28184313,652.62,651.05,0.30719606]
[1740021066408,0.30646174,652.61,651.05,0.30719606]
[1740021067016,0.28181476,652.6,651.05,0.30719606]
[1740021067318,0.30647113,652.59,651.05,0.30719606]
[1740021067509,0.28181476,652.58,651.05,0.30719606]
[1740021067713,0.30648053,652.57,651.05,0.30719606]
[1740021068918,0.28182751,652.56,651.05,0.30719606]
[1740021069112,0.30648992,652.55,651.05,0.30719606]
[1740021069311,0.28182751,652.54,651.05,0.30719606]
[1740021069516,0.30649931,652.53,651.05,0.30719606]
[1740021069712,0.28182751,652.52,651.05,0.30719606]